bitfinex-derivatives/quotes_SOLF0:USTF0_20260316
["timestamp","ask_amount","ask_price","bid_price","bid_amount"]
[1773670893287,3.7397759,94.318,94.225,33.4]
[1773670893484,3.7397759,94.318,94.226,3.68724277]
[1773670894285,7.84904804,94.348,94.241,3.68724277]
[1773670894494,3.7397759,94.347,94.246,3.68724277]
[1773670895186,3.7397759,94.347,94.248,3.68724277]
[1773670897091,3.7397759,94.347,94.251,3.68724277]
[1773670898492,3.7397759,94.347,94.261,3.68724277]
[1773670898687,3.7397759,94.347,94.263,3.68724277]
[1773670900291,3.7397759,94.339,94.262,33.4]
[1773670900495,3.7397759,94.339,94.263,3.68724277]
[1773670901293,3.7397759,94.339,94.262,33.4]
[1773670902093,3.7397759,94.339,94.263,3.68724277]
[1773670902590,3.7397759,94.369,94.264,3.68724277]
[1773670902797,3.7397759,94.369,94.281,3.68724277]
[1773670909799,3.7397759,94.399,94.311,3.68724277]
[1773670909995,3.7397759,94.399,94.313,3.68724277]
[1773670911100,3.7397759,94.399,94.315,3.68724277]
[1773670911302,3.7397759,94.399,94.317,3.68724277]
[1773670916004,3.7397759,94.399,94.318,37.31453736]
[1773670916198,3.7397759,94.399,94.319,3.93453736]
[1773670920304,3.7397759,94.399,94.309,3.93453736]
[1773670920707,3.7397759,94.399,94.262,106.07]
[1773670920708,3.7397759,94.399,94.321,3.93453736]
[1773670921007,3.7397759,94.399,94.323,3.93453736]
[1773670923707,3.7397759,94.399,94.31,33.38]
[1773670923909,3.7397759,94.399,94.304,3.93453736]
[1773670927105,8.55260688,94.39,94.304,3.93453736]
[1773670927309,3.74977019,94.389,94.304,3.93453736]
[1773670928710,3.74977019,94.379,94.289,37.31453736]
[1773670929010,3.74977019,94.379,94.29,3.93453736]
[1773670932915,3.74977019,94.379,94.311,3.93453736]
[1773670933315,3.74977019,94.379,94.321,3.93453736]
[1773670934116,3.74977019,94.379,94.33,7.5281233]
[1773670934807,3.74977019,94.379,94.33,3.93453736]
[1773670936220,3.74977019,94.399,94.341,3.93453736]
[1773670937420,3.59358594,94.39,94.341,3.93453736]
[1773670938119,3.74977019,94.399,94.341,3.93453736]
[1773670938927,3.74977019,94.399,94.298,3.93453736]
[1773670944924,3.74977019,94.399,94.3,3.59819826]
[1773670945623,3.74977019,94.399,94.311,3.59819826]
[1773670945923,3.63047454,94.443,94.351,3.59819826]
[1773670946123,3.63047454,94.443,94.353,3.59819826]
[1773670947430,3.63047454,94.429,94.353,3.59819826]
[1773670950425,3.63047454,94.409,94.31,3.59819826]
[1773670950624,3.63047454,94.389,94.31,3.59819826]
[1773670951433,3.63047454,94.389,94.312,3.59819826]
[1773670951630,3.63047454,94.389,94.313,3.59819826]
[1773670954640,12.18202497,94.41,94.313,3.59819826]
[1773670954941,3.63047454,94.409,94.315,3.59819826]
[1773670955942,3.63047454,94.409,94.331,3.59819826]
[1773670956136,3.63047454,94.432,94.337,3.59819826]
[1773670956338,3.63047454,94.432,94.343,3.59819826]
[1773670956640,3.63047454,94.432,94.345,3.59819826]
[1773670958738,3.63047454,94.409,94.345,3.59819826]
[1773670960341,3.63047454,94.459,94.345,3.59819826]
[1773670960540,3.63047454,94.459,94.347,3.59819826]
[1773670960730,105.9,94.414,94.3,25.97294806]
[1773670960931,19.086,94.295,94.165,21.64657692]
[1773670961236,8.55155043,94.26,94.165,21.64657692]
[1773670961839,8.55155043,94.28,94.165,21.64657692]
[1773670962039,8.55155043,94.26,94.165,21.64657692]
[1773670962240,8.55155043,94.28,94.165,21.64657692]
[1773670962432,8.55155043,94.28,94.171,21.67501863]
[1773670963037,8.55155043,94.26,94.171,21.67501863]
[1773670963854,8.55155043,94.24,94.171,21.67501863]
[1773670964334,8.55155043,94.24,94.149,21.59880715]
[1773670965742,8.55155043,94.22,94.149,21.59880715]
[1773670965942,8.55155043,94.22,94.117,21.5730844]
[1773670966140,8.55155043,94.22,94.119,21.5730844]
[1773670966537,8.55155043,94.2,94.119,21.5730844]
[1773670966738,8.55155043,94.21,94.119,21.5730844]
[1773670967540,8.55155043,94.19,94.119,21.5730844]
[1773670970146,8.55155043,94.21,94.119,21.5730844]
[1773670970546,106.072,94.261,94.099,21.55277268]
[1773670970547,8.55155043,94.17,94.099,21.55277268]
[1773670971048,8.55155043,94.19,94.099,21.55277268]
[1773670972947,8.59438265,94.19,94.099,21.55277268]
[1773670974647,8.59438265,94.19,94.135,0.06699154]
[1773670975151,8.59438265,94.24,94.135,0.06699154]
[1773670975152,8.59438265,94.21,94.135,0.06699154]
[1773670975851,8.59438265,94.21,94.119,21.5572833]
[1773670976547,8.59438265,94.24,94.151,21.55783569]
[1773670977243,8.59438265,94.24,94.131,21.55973281]
[1773670977244,8.59438265,94.2,94.131,21.55973281]
[1773670977444,8.59438265,94.22,94.131,21.55973281]
[1773670979657,8.59438265,94.2,94.166,0.06721315]
[1773670980156,8.59438265,94.2,94.131,21.55973281]
[1773670980348,8.59438265,94.22,94.131,21.55973281]
[1773670980553,8.59438265,94.2,94.091,21.59405868]
[1773670980753,8.59438265,94.2,94.093,21.59405868]
[1773670983361,8.59438265,94.23,94.111,21.55446185]
[1773670983556,33.4,94.251,94.111,21.55446185]
[1773670983757,8.59438265,94.22,94.111,21.55446185]
[1773670984153,8.59438265,94.24,94.161,0.06719256]
[1773670984464,8.59438265,94.26,94.162,21.54909307]
[1773670986558,8.59438265,94.26,94.202,0.06718607]
[1773670986957,8.59438265,94.26,94.162,21.54909307]
[1773670988952,0.06700443,94.22,94.162,21.54909307]
[1773670989456,8.59438265,94.26,94.162,21.54909307]
[1773670989959,106.061,94.271,94.108,21.56140435]
[1773670990262,8.59438265,94.24,94.111,21.56140435]
[1773670990457,8.59438265,94.24,94.07,19.131]
[1773670990458,8.59438265,94.24,94.131,21.56140435]
[1773670991465,19.093,94.258,94.151,21.55747902]
[1773670991755,33.4,94.277,94.151,21.55747902]
[1773670991959,132.59438265,94.3,94.171,21.56479663]
[1773670992555,19.085,94.299,94.171,21.56479663]
[1773670992752,8.59438265,94.28,94.171,21.56479663]
[1773670993355,19.089,94.277,94.171,21.56479663]
[1773670993756,132.59438265,94.3,94.171,21.56479663]
[1773670994064,132.59438265,94.3,94.157,33.4]
[1773670994065,8.59438265,94.3,94.191,21.56606032]
[1773670996565,19.087,94.291,94.191,21.56606032]
[1773670997857,8.59438265,94.3,94.191,21.56606032]
[1773670998662,0.06741753,94.255,94.191,21.56606032]
[1773670999167,8.59438265,94.3,94.191,21.56606032]
[1773670999568,8.59438265,94.26,94.151,21.64017217]
[1773670999765,33.4,94.259,94.151,21.64017217]
[1773671000163,8.59438265,94.24,94.151,21.64017217]
[1773671000861,19.095,94.251,94.151,21.64017217]
[1773671001568,19.098,94.236,94.151,21.64017217]
[1773671002068,33.4,94.246,94.151,21.64017217]
[1773671002265,52.496,94.245,94.151,21.64017217]
[1773671002464,8.59438265,94.23,94.151,21.64017217]
[1773671002767,8.59438265,94.21,94.151,21.64017217]
[1773671002968,0.06757303,94.2,94.114,21.64957243]
[1773671003165,0.06757303,94.2,94.035,10.6]
[1773671003166,8.59438265,94.17,93.939,25.63280484]
[1773671003371,8.59438265,94.15,94.04,8.59438265]
[1773671004365,33.4,94.156,94.04,8.59438265]
[1773671005065,33.4,94.156,94.06,8.59438265]
[1773671005271,8.57706548,94.155,94.061,13.08999836]
[1773671005570,8.57706548,94.154,94.061,13.08999836]
[1773671005771,8.59438265,94.14,94.061,13.08999836]
[1773671005968,8.57706548,94.152,94.061,13.08999836]
[1773671006171,8.57706548,94.159,94.061,13.08999836]
[1773671007866,33.4,94.186,94.081,13.13208412]
[1773671008172,33.4,94.186,94.101,13.13208412]
[1773671008669,8.56794155,94.185,94.101,13.13208412]
[1773671009073,33.4,94.186,94.101,13.13208412]
[1773671009568,33.4,94.212,94.101,13.13208412]
[1773671009773,8.57086321,94.211,94.101,13.13208412]
[1773671010070,8.57086321,94.21,94.101,13.13208412]
[1773671010275,8.57086321,94.209,94.101,13.13208412]
[1773671010464,8.57086321,94.208,94.101,13.13208412]
[1773671010775,8.57086321,94.207,94.101,13.13208412]
[1773671010974,8.57086321,94.206,94.101,13.13208412]
[1773671011171,106.158,94.185,93.985,13.15691413]
[1773671011373,8.59438265,94.14,94.031,13.15691413]
[1773671011574,41.99438265,94.14,94.031,13.15691413]
[1773671011773,8.57086321,94.139,94.031,13.15691413]
[1773671013573,8.59438265,94.1,94.031,13.15691413]
[1773671013769,8.59438265,94.11,94.031,13.15691413]
[1773671015076,33.4,94.109,94.031,13.15691413]
[1773671017972,0.06726195,94.079,94.031,13.15691413]
[1773671018176,8.59438265,94.13,94.031,13.15691413]
[1773671018383,8.59438265,94.14,94.031,13.15691413]
[1773671018774,33.42,94.154,94.051,13.14227853]
[1773671021776,8.59438265,94.16,94.051,13.14227853]
[1773671022081,8.59438265,94.14,94.051,13.14227853]
[1773671023781,19.118,94.138,94.051,13.14227853]
[1773671024179,8.59438265,94.13,94.051,13.14227853]
[1773671025087,19.118,94.138,94.051,13.14227853]
[1773671026591,8.59438265,94.13,94.051,13.14227853]
[1773671028087,19.119,94.129,94.051,13.14227853]
[1773671030092,19.124,94.108,94.023,13.08602766]
[1773671030296,33.4,94.107,94.023,13.08602766]
[1773671030895,8.59438265,94.09,94.023,13.08602766]
[1773671031696,19.128,94.087,94.023,13.08602766]
[1773671032091,19.128,94.087,93.923,19.161]
[1773671032092,8.59438265,94.07,93.971,13.09513471]
[1773671034892,8.61411675,94.08,93.971,13.09513471]
[1773671036299,8.61411675,94.1,93.981,13.09341106]
[1773671036696,8.61411675,94.06,93.981,13.09341106]
[1773671038496,19.13,94.076,93.787,106.607]
[1773671038497,8.61411675,94.02,93.951,13.09064849]
[1773671039497,8.61411675,94.03,93.951,13.09064849]
[1773671039697,8.61411675,94.08,93.951,13.09064849]
[1773671039698,8.61411675,94.07,93.951,13.09064849]
[1773671041106,8.61411675,94.07,93.953,13.04915887]
[1773671041610,19.132,94.069,93.955,13.04915887]
[1773671042002,19.132,94.069,93.957,13.05552365]
[1773671042604,8.61411675,94.05,93.957,13.05552365]
[1773671043608,8.61411675,94.05,93.95,8.61411675]
[1773671043609,19.136,94.048,93.959,13.05554541]
[1773671044904,8.61411675,94.05,93.959,13.05554541]
[1773671045111,8.61411675,94.07,93.959,13.05554541]
[1773671046013,19.133,94.063,93.961,13.0555347]
[1773671046407,8.61411675,94.05,93.961,13.0555347]
[1773671046913,19.133,94.063,93.961,13.0555347]
[1773671047114,8.61411675,94.06,93.961,13.0555347]
[1773671047609,8.61411675,94.04,93.963,13.05541501]
[1773671048309,8.47299297,94.067,93.963,13.05541501]
[1773671048514,19.139,94.035,93.963,13.05541501]
[1773671048910,8.61411675,94.06,93.963,13.05541501]
[1773671050516,19.138,94.037,93.963,13.05541501]
[1773671051815,8.47299297,94.054,93.963,13.05541501]
[1773671052016,8.61411675,94.06,93.963,13.05541501]
[1773671053109,19.138,94.038,93.963,13.05541501]
[1773671053612,8.61411675,94.02,93.938,13.08339547]
[1773671054910,19.142,94.019,93.938,13.08339547]
[1773671057314,8.47299297,94.037,93.938,13.08339547]
[1773671057518,8.61411675,94.04,93.94,13.10286154]
[1773671058228,8.61411675,94.06,93.951,13.10226557]
[1773671058413,8.61411675,94.06,93.953,13.10226557]
[1773671058618,8.61411675,94.06,93.955,13.10226557]
[1773671059222,19.134,94.059,93.957,13.10104991]
[1773671059516,0.0672527,94.017,93.957,13.10104991]
[1773671060118,8.61411675,93.99,93.899,13.10753446]
[1773671060917,8.5302934,94.007,93.84,8.61411675]
[1773671060918,8.61411675,93.97,93.841,13.04277383]
[1773671061519,8.61411675,93.95,93.843,13.04277383]
[1773671062219,8.61411675,93.93,93.843,13.04277383]
[1773671062424,8.61411675,93.95,93.843,13.04277383]
[1773671062622,8.61411675,93.97,93.861,13.04870443]
[1773671063017,19.152,93.969,93.861,13.04870443]
[1773671066929,8.61411675,93.97,93.861,13.04870443]
[1773671067324,8.61411675,93.97,93.857,33.42]
[1773671067325,8.61411675,94.0,93.891,13.04156614]
[1773671067530,8.61411675,94.02,93.891,13.04156614]
[1773671067725,8.61411675,94.0,93.891,13.04156614]
[1773671068826,16.91886629,94.033,93.891,13.04156614]
[1773671069021,8.61411675,94.0,93.891,13.04156614]
[1773671070529,19.146,93.999,93.891,13.04156614]
[1773671071731,8.61411675,94.0,93.891,13.04156614]
[1773671072331,19.147,93.995,93.891,13.04156614]
[1773671072532,19.147,93.995,93.893,13.08462421]
[1773671072731,8.61411675,94.0,93.893,13.08462421]
[1773671072929,8.61411675,94.02,93.893,13.08462421]
[1773671073835,8.61411675,94.02,93.895,13.08334375]
[1773671074526,19.143,94.015,93.895,13.08334375]
[1773671075135,19.143,94.015,93.91,8.61411675]
[1773671075332,8.61411675,94.02,93.911,13.08359604]
[1773671075538,19.138,94.039,93.894,33.42]
[1773671075539,8.5093088,94.038,93.931,13.08359604]
[1773671075730,8.61411675,94.06,93.931,13.08359604]
[1773671075938,8.61411675,94.06,93.951,13.08359604]
[1773671076231,8.61411675,94.06,93.952,13.08356893]
[1773671076436,19.135,94.054,93.952,13.08356893]
[1773671076638,8.61411675,94.04,93.952,13.08356893]
[1773671078235,8.61411675,94.02,93.932,13.09964812]
[1773671079139,8.61411675,94.02,93.869,31.87]
[1773671079140,8.61411675,94.0,93.905,13.09880271]
[1773671081543,8.61411675,94.0,93.907,13.11050135]
[1773671085145,8.61411675,94.01,93.907,13.11050135]
[1773671085551,8.5522838,94.009,93.907,13.11050135]
[1773671085747,7.99443563,94.032,93.855,178.0]
[1773671085748,19.14,94.026,93.911,13.18378149]
[1773671086051,19.14,94.026,93.913,13.18501868]
[1773671088050,17.16640055,94.03,93.931,13.18597348]
[1773671088251,8.61411675,94.03,93.933,13.18597348]
[1773671088553,8.61411675,94.03,93.935,13.18597348]
[1773671089556,19.14,94.029,93.935,13.18597348]
[1773671089857,8.61411675,94.03,93.935,13.18597348]
[1773671089858,8.5522838,94.028,93.935,13.18597348]
[1773671090151,8.61411675,94.03,93.935,13.18597348]
[1773671090152,8.5522838,94.027,93.935,13.18597348]
[1773671090344,8.5522838,94.026,93.935,13.18597348]
[1773671090649,8.5522838,94.025,93.935,13.18597348]
[1773671090855,8.5522838,94.024,93.935,13.18597348]
[1773671091054,8.5522838,94.023,93.935,13.18597348]
[1773671091355,8.61411675,94.03,93.935,13.18597348]
[1773671091356,8.5522838,94.029,93.935,13.18597348]
[1773671091557,19.142,94.02,93.935,13.18597348]
[1773671093555,0.06712841,93.987,93.935,13.18597348]
[1773671094051,0.06712841,93.987,93.914,13.17526271]
[1773671094652,8.61411675,94.03,93.914,13.17526271]
[1773671094860,8.61411675,94.03,93.888,33.42]
[1773671094861,8.62097001,94.04,93.931,13.17526271]
[1773671095258,8.58993322,94.043,93.951,13.1788091]
[1773671095447,19.137,94.044,93.951,13.1788091]
[1773671095853,8.62097001,94.06,93.951,13.1788091]
[1773671095854,8.58993322,94.058,93.951,13.1788091]
[1773671097552,0.06731265,94.014,93.951,13.1788091]
[1773671098154,8.58993322,94.058,93.951,13.1788091]
[1773671098759,19.132,94.067,93.951,13.1788091]
[1773671099062,8.56958786,94.058,93.951,13.1788091]
[1773671100458,8.56958786,94.058,93.971,13.18562083]
[1773671100651,8.62097001,94.03,93.943,13.18562083]
[1773671100857,8.62097001,94.01,93.943,13.18562083]
[1773671101661,8.62097001,94.01,93.924,13.18553117]
[1773671101861,8.62097001,93.99,93.924,13.18553117]
[1773671102263,19.144,94.009,93.924,13.18553117]
[1773671102658,8.62097001,93.97,93.871,13.18680868]
[1773671104154,17.16960237,93.97,93.871,13.18680868]
[1773671104363,33.42,93.971,93.871,13.18680868]
[1773671104663,19.148,93.989,93.871,13.18680868]
[1773671104864,8.62097001,93.97,93.873,13.18394449]
[1773671105061,8.62097001,93.97,93.874,13.17030652]
[1773671105662,8.62097001,93.97,93.876,13.17030652]
[1773671105863,27.70202142,93.989,93.876,13.17030652]
[1773671106562,8.55402142,93.989,93.881,13.17458197]
[1773671107967,8.62097001,93.97,93.883,13.17037639]
[1773671109470,8.62097001,93.95,93.883,13.17037639]
[1773671109669,8.62097001,93.95,93.855,13.17130118]
[1773671110164,19.152,93.969,93.856,13.17493079]
[1773671110665,8.62097001,93.97,93.856,13.17493079]
[1773671110964,8.62097001,93.95,93.858,13.18052441]
[1773671111870,8.62097001,93.95,93.751,187.24]
[1773671111871,8.62097001,93.91,93.837,13.18413363]
[1773671112364,33.42,93.927,93.837,13.18413363]
[1773671115366,8.62097001,93.95,93.837,13.18413363]
[1773671116274,8.62097001,93.95,93.84,8.62097001]
[1773671116466,8.62097001,93.95,93.841,13.18344916]
[1773671116665,8.62097001,93.95,93.843,13.18344916]
[1773671119569,8.62097001,93.97,93.861,13.20171797]
[1773671119772,8.62097001,93.97,93.863,13.20171797]
[1773671120275,33.44,93.98,93.863,13.20171797]
[1773671121174,33.44,94.011,93.881,13.20877473]
[1773671121377,17.14678787,94.01,93.881,13.20877473]
[1773671121667,8.62097001,93.99,93.883,13.20877473]
[1773671121869,8.62097001,93.97,93.885,13.21883149]
[1773671123071,8.62097001,93.95,93.885,13.21883149]
[1773671123270,8.62097001,93.95,93.866,13.21230284]
[1773671123472,8.62097001,93.93,93.83,13.21230284]
[1773671124375,8.62097001,93.91,93.83,13.21230284]
[1773671128066,8.62097001,93.93,93.83,13.21230284]
[1773671129181,8.62097001,93.91,93.83,13.21230284]
[1773671130371,8.62097001,93.93,93.83,13.21230284]
[1773671130575,8.62097001,93.95,93.841,13.24686855]
[1773671132279,8.62097001,93.95,93.843,13.25272401]
[1773671132481,8.62097001,93.93,93.843,13.25272401]
[1773671134174,8.62097001,93.91,93.801,13.24496482]
[1773671134580,8.62097001,93.91,93.803,13.24496482]
[1773671136385,8.62097001,93.89,93.803,13.24496482]
[1773671139586,8.62097001,93.87,93.803,13.24496482]
[1773671139892,8.62097001,93.89,93.803,13.24496482]
[1773671140191,8.62097001,93.91,93.803,13.24496482]
[1773671140690,8.62097001,93.91,93.805,13.24179588]
[1773671140891,8.49511419,93.929,93.805,13.24179588]
[1773671141086,8.62097001,93.93,93.805,13.24179588]
[1773671142687,19.161,93.927,93.807,13.24623682]
[1773671142891,8.62097001,93.91,93.807,13.24623682]
[1773671143692,8.62097001,93.91,93.8,8.62097001]
[1773671143693,8.62097001,93.91,93.809,13.22356574]
[1773671144194,8.62097001,93.91,93.81,13.22137662]
[1773671144791,8.62097001,93.91,93.812,13.22137662]
[1773671148395,19.164,93.909,93.813,33.44]
[1773671148596,19.164,93.909,93.813,46.67454165]
[1773671148798,8.49511419,93.908,93.814,13.23454165]
[1773671149096,8.62097001,93.85,93.761,13.22846078]
[1773671150096,8.49511419,93.853,93.761,13.22846078]
[1773671150297,33.44,93.854,93.761,13.22846078]
[1773671151100,8.55108428,93.853,93.761,13.22846078]
[1773671151698,8.62097001,93.85,93.761,13.22846078]
[1773671151894,8.55108428,93.849,93.761,13.22846078]
[1773671152302,33.44,93.854,93.761,13.22846078]
[1773671152303,8.62097001,93.84,93.761,13.22846078]
[1773671153500,33.44,93.854,93.761,13.22846078]
[1773671156901,8.65419227,93.86,93.761,13.22846078]
[1773671157109,19.46408324,93.897,93.761,13.22846078]
[1773671157110,8.65419227,93.84,93.761,13.22846078]
[1773671157709,8.65419227,93.82,93.76,11.55736852]
[1773671160208,8.5290276,93.84,93.76,11.55736852]
[1773671160209,8.65419227,93.84,93.761,13.04030218]
[1773671160506,19.173,93.864,93.761,13.04030218]
[1773671161611,8.65419227,93.87,93.761,13.04030218]
[1773671161808,33.46,93.875,93.781,13.07530786]
[1773671162311,8.65419227,93.87,93.781,13.07530786]
[1773671162512,33.46,93.875,93.781,13.07530786]
[1773671163413,8.65419227,93.87,93.781,13.07530786]
[1773671163608,8.65419227,93.85,93.781,13.07530786]
[1773671164004,8.65419227,93.85,93.76,11.55736852]
[1773671164404,8.65419227,93.85,93.706,31.87]
[1773671164405,8.65419227,93.81,93.695,13.01802692]
[1773671164605,8.65419227,93.79,93.695,13.01802692]
[1773671165610,33.46,93.806,93.695,13.01802692]
[1773671165918,8.65419227,93.79,93.697,12.97526992]
[1773671166714,8.65419227,93.79,93.699,12.97526992]
[1773671168111,8.65419227,93.8,93.699,12.97526992]
[1773671168617,33.46,93.806,93.701,12.96752043]
[1773671168819,33.46,93.806,93.703,12.96752043]
[1773671170120,8.65419227,93.8,93.705,12.94766147]
[1773671170719,8.65419227,93.8,93.707,12.94766147]
[1773671171515,8.65419227,93.8,93.708,33.46]
[1773671171721,8.65419227,93.8,93.707,12.94766147]
[1773671172622,19.187,93.796,93.707,12.94766147]
[1773671175123,8.65419227,93.8,93.707,12.94766147]
[1773671175717,33.46,93.806,93.707,12.94766147]
[1773671175916,33.46,93.806,93.709,13.07544588]
[1773671176813,33.46,93.806,93.711,13.07544588]
[1773671177214,33.46,93.806,93.713,13.06955055]
[1773671177412,27.83619227,93.82,93.713,13.06955055]
[1773671177618,33.46,93.835,93.73,8.65419227]
[1773671177815,33.46,93.835,93.731,13.06955055]
[1773671178218,33.46,93.835,93.733,13.09982718]
[1773671178421,33.46,93.835,93.735,13.09982718]
[1773671178620,33.46,93.835,93.71,8.65419227]
[1773671178621,8.65419227,93.82,93.737,13.09982718]
[1773671179324,19.183,93.819,93.737,13.09982718]
[1773671181023,33.46,93.835,93.737,13.09982718]
[1773671181618,19.18,93.832,93.739,13.0574073]
[1773671181923,19.18,93.832,93.741,13.0574073]
[1773671182120,19.18,93.832,93.743,12.99262122]
[1773671182317,19.18,93.832,93.745,12.99262122]
[1773671182520,19.18,93.832,93.747,12.99262122]
[1773671182720,19.18,93.832,93.749,12.99262122]
[1773671182915,19.18,93.832,93.751,12.99262122]
[1773671188619,19.183,93.818,93.751,12.99262122]
[1773671189825,19.183,93.818,93.711,12.96666971]
[1773671190025,19.183,93.818,93.71,8.65419227]
[1773671190026,8.65419227,93.81,93.713,12.96666971]
[1773671190926,8.54190105,93.829,93.713,12.96666971]
[1773671191121,8.65419227,93.83,93.713,12.96666971]
[1773671191421,8.65419227,93.83,93.715,12.99948256]
[1773671191825,8.65419227,93.83,93.717,13.01447909]
[1773671192328,8.54190105,93.829,93.719,13.01447909]
[1773671192626,19.181,93.827,93.719,13.01447909]
[1773671192826,8.65419227,93.83,93.719,13.01447909]
[1773671192827,8.54190105,93.826,93.719,13.01447909]
[1773671193125,8.54190105,93.825,93.719,13.01447909]
[1773671193427,8.54190105,93.824,93.719,13.01447909]
[1773671193627,19.182,93.82,93.719,13.01447909]
[1773671195318,8.54190105,93.824,93.719,13.01447909]
[1773671195522,8.54190105,93.834,93.731,13.01749178]
[1773671195723,19.178,93.841,93.731,13.01749178]
[1773671196521,19.178,93.841,93.751,13.02413068]
[1773671197224,8.57642862,93.857,93.753,13.03307538]
[1773671197530,8.65419227,93.86,93.753,13.03307538]
[1773671197726,19.174,93.863,93.75,8.65419227]
[1773671197727,8.57642862,93.861,93.755,13.03307538]
[1773671197926,8.57642862,93.873,93.771,13.03154963]
[1773671198129,8.65419227,93.87,93.772,33.46]
[1773671198326,8.57642862,93.869,93.773,13.03154963]
[1773671198527,19.173,93.864,93.775,13.03154963]
[1773671198726,8.57642862,93.863,93.775,13.03154963]
[1773671198925,8.57642862,93.862,93.775,13.03154963]
[1773671199125,8.65419227,93.85,93.775,13.03154963]
[1773671202326,8.57642862,93.849,93.775,13.03154963]
[1773671202526,8.65419227,93.84,93.775,13.03154963]
[1773671204237,8.57642862,93.854,93.775,13.03154963]
[1773671204434,19.175,93.855,93.775,13.03154963]
[1773671204827,8.65419227,93.84,93.775,13.03154963]
[1773671205329,8.65419227,93.84,93.676,26.28798372]
[1773671205635,8.65419227,93.75,93.688,13.12472653]
[1773671206133,8.54610134,93.76,93.688,13.12472653]
[1773671207036,33.46,93.761,93.688,13.12472653]
[1773671209337,33.46,93.761,93.646,33.46]
[1773671209338,8.65419227,93.75,93.646,33.46]
[1773671209638,8.65419227,93.75,93.648,13.23712647]
[1773671210840,8.65419227,93.75,93.65,13.23700016]
[1773671212941,8.65419227,93.75,93.652,13.07803389]
[1773671215142,8.65419227,93.75,93.654,13.07668534]
[1773671216745,8.65419227,93.75,93.656,13.08185932]
[1773671216946,8.65419227,93.75,93.658,13.0740012]
[1773671217238,8.65419227,93.75,93.64,8.65419227]
[1773671217239,8.65419227,93.75,93.66,13.0740012]
[1773671218739,8.67365646,93.75,93.66,13.0740012]
[1773671221141,8.67365646,93.75,93.662,13.05282064]
[1773671223241,8.67365646,93.75,93.64,8.67365646]
[1773671223242,8.67365646,93.75,93.664,13.01524111]
[1773671223845,8.67365646,93.73,93.664,13.01524111]
[1773671225745,8.67365646,93.73,93.647,13.0093377]
[1773671228050,8.67365646,93.75,93.649,13.00062588]
[1773671228246,8.67365646,93.77,93.649,13.00062588]
[1773671228448,8.67365646,93.75,93.651,13.00062588]
[1773671231250,8.67365646,93.75,93.653,13.04924148]
[1773671232655,27.86665646,93.77,93.653,13.04924148]
[1773671235058,8.67365646,93.75,93.653,13.04924148]
[1773671235752,19.193,93.77,93.653,13.04924148]
[1773671235753,27.86665646,93.77,93.653,13.04924148]
[1773671236458,8.67365646,93.75,93.655,13.25441506]
[1773671236650,8.67365646,93.73,93.655,13.25441506]
[1773671237552,19.201,93.729,93.655,13.25441506]
[1773671240963,8.67365646,93.73,93.655,13.25441506]
[1773671241463,27.87065646,93.75,93.655,13.25441506]
[1773671241661,8.67365646,93.75,93.655,13.25441506]
[1773671241963,27.86665646,93.77,93.655,13.25441506]
[1773671242759,3.64122823,93.75,93.691,13.22468306]
[1773671244367,3.64122823,93.74,93.691,13.22468306]
[1773671244770,3.64122823,93.73,93.691,13.22468306]
[1773671245867,3.64122823,93.75,93.691,13.22468306]
[1773671246072,3.64122823,93.74,93.691,13.22468306]
[1773671248368,3.64122823,93.75,93.691,13.22468306]
[1773671248565,3.64122823,93.76,93.692,13.17998352]
[1773671248769,8.58529133,93.779,93.701,13.17998352]
[1773671248973,8.58529133,93.778,93.701,13.17998352]
[1773671249171,8.66770553,93.77,93.701,13.17998352]
[1773671249375,8.58529133,93.769,93.701,13.17998352]
[1773671249575,8.58529133,93.768,93.701,13.17998352]
[1773671249776,8.58529133,93.767,93.701,13.17998352]
[1773671249977,8.58529133,93.766,93.701,13.17998352]
[1773671250173,8.58529133,93.765,93.701,13.17998352]
[1773671250472,8.58529133,93.764,93.684,13.12992735]
[1773671250680,8.58529133,93.763,93.684,13.12992735]
[1773671250879,8.58529133,93.762,93.684,13.12992735]
[1773671251076,8.58529133,93.761,93.684,13.12992735]
[1773671251276,8.58529133,93.76,93.684,13.12992735]
[1773671251577,8.58529133,93.759,93.684,13.12992735]
[1773671251877,8.58529133,93.758,93.684,13.12992735]
[1773671252079,8.58529133,93.757,93.684,13.12992735]
[1773671252277,8.66770553,93.77,93.684,13.12992735]
[1773671252278,8.58529133,93.756,93.684,13.12992735]
[1773671252575,8.58529133,93.755,93.684,13.12992735]
[1773671252773,8.58529133,93.754,93.684,13.12992735]
[1773671252974,8.58529133,93.753,93.684,13.12992735]
[1773671253279,8.58529133,93.752,93.684,13.12992735]
[1773671253478,8.58529133,93.751,93.684,13.12992735]
[1773671253668,8.66770553,93.77,93.684,13.12992735]
[1773671253874,8.63994549,93.769,93.684,13.12992735]